[Event "8. Arber-Schachopen 2019"]
[Site "Bodenmais"]
[Date "2019.08.04"]
[Round "9.8"]
[White "Medunova, Vera"]
[Black "Pap, Misa"]
[Result "1-0"]
[ECO "C36"]
[WhiteElo "2093"]
[BlackElo "2461"]
[Annotator "ChessBase"]
[PlyCount "81"]
[EventDate "2019.07.27"]
[EventCountry "GER"]
[SourceTitle "playchess.com"]
[Source "ChessBase"]
[SourceQuality "1"]
[TimeControl "40/5400+30:1800+30"]

1. e4 {[%emt 0:00:00]} e5 {[%emt 0:00:00]} 2. f4 {[%emt 0:00:00]} d5 {[%emt 0:00:13]} 3. exd5 {[%emt 0:00:26]} exf4 {[%emt 0:00:05]} 4. Nf3 {[%emt 0:00:22]} Nf6 {[%emt 0:00:06]} 5. Bc4 {[%emt 0:01:15]} Nxd5 {[%emt 0:00:32]} 6. Qe2+ {[%emt 0:00:41]} Be7 {[%emt 0:02:25]} 7. O-O {[%emt 0:01:14]} Be6 {[%emt 0:00:14]} 8. d4 {[%emt 0:00:18]} O-O {[%emt 0:00:19]} 9. Nc3 {[%emt 0:02:31]} Nxc3 {[%emt 0:03:22]} 10. bxc3 {[%emt 0:00:05]} Bxc4 {[%emt 0:00:08]} 11. Qxc4 {[%emt 0:00:05]} Bd6 {[%emt 0:00:04]} 12. Qb5 {[%emt 0:03:01]} Nd7 {[%emt 0:00:05]} 13. Qxb7 {[%emt 0:02:56]} h6 {[%emt 0:00:06]} 14. c4 {[%emt 0:13:53]} g5 {[%emt 0:19:37]} 15. Qd5 {[%emt 0:09:19]} Re8 {[%emt 0:16:11]} 16. Qf5 {[%emt 0:11:05]} Re6 {[%emt 0:09:02]} 17. Bd2 {[%emt 0:07:43]} Rg6 {[%emt 0:07:48]} 18. c5 {[%emt 0:02:47]} Bf8 {[%emt 0:00:51]} 19. c3 {[%emt 0:01:14]} Rf6 {[%emt 0:07:44]} 20. Qg4 {[%emt 0:02:18]} Rg6 {[%emt 0:02:36]} 21. Qf5 {[%emt 0:00:44]} Bg7 {[%emt 0:02:22]} 22. Kh1 {[%emt 0:04:33]} Rf6 {[%emt 0:00:20]} 23. Qg4 {[%emt 0:01:08]} Ra6 {[%emt 0:02:58]} 24. h4 {[%emt 0:06:20]} Nf6 {[%emt 0:07:38]} 25. Qf5 {[%emt 0:01:26]} Nh5 {[%emt 0:00:05]} 26. Be1 {[%emt 0:03:29]} Rg6 {[%emt 0:04:17]} 27. Kg1 {[%emt 0:04:02]} Bf6 {[%emt 0:00:35]} 28. Qg4 {[%emt 0:02:00]} Ng3 {[%emt 0:03:05]} 29. Bxg3 {[%emt 0:00:24]} fxg3 {[%emt 0:00:04]} 30. h5 {[%emt 0:02:13]} Rg7 {[%emt 0:00:01]} 31. Rae1 {[%emt 0:01:42]} Qc8 {[%emt 0:05:08]} 32. Qxg3 {[%emt 0:00:41]} g4 {[%emt 0:00:16]} 33. Ne5 {[%emt 0:03:15]} Qd8 {[%emt 0:01:21]} 34. Qf4 {[%emt 0:04:52]} Bxe5 {[%emt 0:00:41]} 35. Rxe5 {[%emt 0:00:29]} Qd7 {[%emt 0:00:37]} 36. Qxh6 {[%emt 0:01:37]} f5 {[%emt 0:02:27]} 37. Rfxf5 {[%emt 0:01:35]} Re8 {[%emt 0:00:43]} 38. Rg5 {[%emt 0:01:29]} Rxe5 {[%emt 0:00:28]} 39. Rxg7+ {[%emt 0:00:27]} Qxg7 {[%emt 0:00:05]} 40. Qxg7+ {[%emt 0:00:05]} Kxg7 {[%emt 0:00:06]} 41. dxe5 {[%emt 0:30:04]} 1-0

[Event "8. Arber-Schachopen 2019"]
[Site "Bodenmais"]
[Date "2019.08.04"]
[Round "9.9"]
[White "Rotstein, Arkadij"]
[Black "Danninger, Jannik"]
[Result "1-0"]
[ECO "A28"]
[WhiteElo "2471"]
[BlackElo "1842"]
[Annotator "ChessBase"]
[PlyCount "94"]
[EventDate "2019.07.27"]
[EventCountry "GER"]
[SourceTitle "playchess.com"]
[Source "ChessBase"]
[SourceQuality "1"]
[TimeControl "40/5400+30:1800+30"]

1. c4 {[%emt 0:00:00]} e5 {[%emt 0:00:01]} 2. Nc3 {[%emt 0:00:00]} Nf6 {[%emt 0:00:22]} 3. Nf3 {[%emt 0:00:00]} Nc6 {[%emt 0:00:20]} 4. a3 {[%emt 0:00:02]} d5 {[%emt 0:00:39]} 5. cxd5 {[%emt 0:00:08]} Nxd5 {[%emt 0:00:03]} 6. e3 {[%emt 0:00:48]} a6 {[%emt 0:01:31]} 7. Qc2 {[%emt 0:00:47]} f5 {[%emt 0:01:49]} 8. Nxd5 {[%emt 0:02:24]} Qxd5 {[%emt 0:00:20]} 9. Bc4 {[%emt 0:00:09]} Qd8 {[%emt 0:01:21]} 10. d3 {[%emt 0:10:54]} Be7 {[%emt 0:01:31]} 11. b4 {[%emt 0:01:45]} Bf6 {[%emt 0:01:25]} 12. Bb2 {[%emt 0:00:10]} Qe7 {[%emt 0:04:01]} 13. Bd5 {[%emt 0:05:56]} Nd8 {[%emt 0:02:47]} 14. O-O {[%emt 0:04:32]} c6 {[%emt 0:01:43]} 15. Bb3 {[%emt 0:00:12]} Be6 {[%emt 0:01:47]} 16. e4 {[%emt 0:01:53]} f4 {[%emt 0:02:59]} 17. d4 {[%emt 0:03:17]} Bxb3 {[%emt 0:00:28]} 18. Qxb3 {[%emt 0:00:10]} Nf7 {[%emt 0:00:15]} 19. dxe5 {[%emt 0:01:28]} Nxe5 {[%emt 0:00:29]} 20. Bxe5 {[%emt 0:01:19]} Bxe5 {[%emt 0:00:43]} 21. Rad1 {[%emt 0:02:07]} Bc7 {[%emt 0:06:14]} 22. a4 {[%emt 0:02:23]} Rd8 {[%emt 0:01:22]} 23. b5 {[%emt 0:02:43]} axb5 {[%emt 0:01:57]} 24. axb5 {[%emt 0:00:20]} Qf7 {[%emt 0:02:34]} 25. Rxd8+ {[%emt 0:03:43]} Bxd8 {[%emt 0:00:11]} 26. Qxf7+ {[%emt 0:00:12]} Kxf7 {[%emt 0:00:06]} 27. bxc6 {[%emt 0:00:08]} bxc6 {[%emt 0:01:01]} 28. Ne5+ {[%emt 0:01:15]} Kf6 {[%emt 0:01:16]} 29. Nxc6 {[%emt 0:00:23]} Bb6 {[%emt 0:01:06]} 30. Rb1 {[%emt 0:01:50]} Bc5 {[%emt 0:04:39]} 31. Rb5 {[%emt 0:27:43]} Ra8 {[%emt 0:00:35]} 32. Na5 {[%emt 0:00:14]} Bd6 {[%emt 0:03:44]} 33. Kf1 {[%emt 0:02:47]} h6 {[%emt 0:02:18]} 34. Nc4 {[%emt 0:01:51]} Bc7 {[%emt 0:02:43]} 35. Ke2 {[%emt 0:03:19]} Rd8 {[%emt 0:02:27]} 36. Rc5 {[%emt 0:02:37]} Rd7 {[%emt 0:02:33]} 37. h4 {[%emt 0:00:39]} g6 {[%emt 0:05:00]} 38. h5 {[%emt 0:03:45]} g5 {[%emt 0:03:34]} 39. Rc6+ {[%emt 0:00:36]} Kg7 {[%emt 0:00:07]} 40. Kf3 {[%emt 0:00:18]} Re7 {[%emt 0:03:52]} 41. Kg4 {[%emt 0:30:51]} Be5 {[%emt 0:32:09]} 42. f3 {[%emt 0:02:01]} Bb8 {[%emt 0:03:33]} 43. Nb6 {[%emt 0:03:03]} Rf7 {[%emt 0:01:41]} 44. Nd5 {[%emt 0:00:50]} Be5 {[%emt 0:01:03]} 45. Re6 {[%emt 0:00:16]} Bd4 {[%emt 0:01:01]} 46. e5 {[%emt 0:01:32]} Rd7 {[%emt 0:00:53]} 47. Rg6+ {[%emt 0:00:46]} Kf7 {[%emt 0:00:08]} 1-0

[Event "8. Arber-Schachopen 2019"]
[Site "Bodenmais"]
[Date "2019.08.04"]
[Round "9.10"]
[White "Kleibel, Uwe"]
[Black "Schleining, Zoya"]
[Result "0-1"]
[ECO "B40"]
[WhiteElo "2217"]
[BlackElo "2339"]
[Annotator "NA"]
[PlyCount "90"]
[EventDate "2019.07.27"]
[EventCountry "GER"]
[SourceTitle "playchess.com"]
[Source "ChessBase"]
[SourceQuality "1"]
[TimeControl "40/5400+30:1800+30"]

1. e4 {[%emt 0:00:00]} c5 {[%emt 0:00:00]} 2. Nf3 {[%emt 0:00:00]} e6 {[%emt 0:00:00]} 3. g3 {[%emt 0:00:00]} Nc6 {[%emt 0:00:00]} 4. Bg2 {[%emt 0:00:00]} Nf6 {[%emt 0:00:00]} 5. Qe2 {[%emt 0:00:00]} e5 {[%emt 0:00:14]} 6. Nc3 {[%emt 0:00:47]} d6 {[%emt 0:01:23]} 7. O-O {[%emt 0:00:53]} Be7 {[%emt 0:00:53]} 8. Nd5 {[%emt 0:00:07]} Nxd5 {[%emt 0:03:11]} 9. exd5 {[%emt 0:00:26]} Nd4 {[%emt 0:00:14]} 10. Nxd4 {[%emt 0:00:13]} cxd4 {[%emt 0:00:27]} 11. c4 {[%emt 0:00:41]} O-O {[%emt 0:01:42]} 12. d3 {[%emt 0:02:40]} Bd7 {[%emt 0:05:29]} 13. Bd2 {[%emt 0:01:06]} a5 {[%emt 0:08:57]} 14. b3 {[%emt 0:00:34]} Ra6 {[%emt 0:05:51]} 15. a3 {[%emt 0:00:28]} Re8 {[%emt 0:18:56]} 16. b4 {[%emt 0:00:59]} axb4 {[%emt 0:01:27]} 17. axb4 {[%emt 0:00:11]} Qa8 {[%emt 0:01:11]} 18. Rab1 {[%emt 0:07:26]} Ra2 {[%emt 0:02:52]} 19. h4 {[%emt 0:00:52]} Qa4 {[%emt 0:02:39]} 20. Rfc1 {[%emt 0:02:00]} b6 {[%emt 0:01:31]} 21. Qe1 {[%emt 0:03:41]} Bf8 {[%emt 0:05:07]} 22. Bf3 {[%emt 0:05:43]} Qa3 {[%emt 0:03:17]} 23. Be2 {[%emt 0:04:15]} Ra8 {[%emt 0:02:27]} 24. b5 {[%emt 0:02:22]} Qa7 {[%emt 0:13:01]} 25. Bd1 {[%emt 0:03:52]} Qc7 {[%emt 0:00:57]} 26. Bb3 {[%emt 0:02:25]} R2a7 {[%emt 0:00:06]} 27. Ra1 {[%emt 0:02:01]} Bf5 {[%emt 0:01:27]} 28. Rxa7 {[%emt 0:03:39]} Qxa7 {[%emt 0:00:24]} 29. Qe2 {[%emt 0:00:26]} h5 {[%emt 0:02:26]} 30. Bb4 {[%emt 0:03:25]} Qb8 {[%emt 0:07:37]} 31. Rd1 {[%emt 0:06:04]} Bg4 {[%emt 0:00:41]} 32. f3 {[%emt 0:00:02]} Bf5 {[%emt 0:00:14]} 33. Qb2 {[%emt 0:08:29]} Ra7 {[%emt 0:04:02]} 34. Bc2 {[%emt 0:00:48]} Qa8 {[%emt 0:00:49]} 35. Bb3 {[%emt 0:00:07]} Qd8 {[%emt 0:02:05]} 36. Kf2 {[%emt 0:07:21]} g5 {[%emt 0:02:24]} 37. hxg5 {[%emt 0:07:03]} Qxg5 {[%emt 0:00:03]} 38. Qe2 {[%emt 0:03:12]} Qg6 {[%emt 0:00:34]} 39. g4 {[%emt 0:06:07]} hxg4 {[%emt 0:00:20]} 40. Rg1 {[%emt 0:00:20]} Bxd3 {[%emt 0:01:13]} 41. Qd1 {[%emt 0:30:20]} Bf5 {[%emt 0:30:47]} 42. fxg4 {[%emt 0:05:18]} Be4 {[%emt 0:01:41]} 43. g5 {[%emt 0:02:48]} Qf5+ {[%emt 0:01:25]} 44. Ke1 {[%emt 0:00:13]} Bf3 {[%emt 0:00:00]} 45. Qc1 {[%emt 0:00:00]} Qd3 {[%emt 0:00:00]} 0-1

[Event "8. Arber-Schachopen 2019"]
[Site "Bodenmais"]
[Date "2019.08.04"]
[Round "9.11"]
[White "Woelk, Tom-Frederic"]
[Black "Neiss, Josef Martin"]
[Result "1-0"]
[ECO "A52"]
[WhiteElo "2229"]
[BlackElo "2041"]
[Annotator "ChessBase"]
[PlyCount "131"]
[EventDate "2019.07.27"]
[EventCountry "GER"]
[SourceTitle "playchess.com"]
[Source "ChessBase"]
[SourceQuality "1"]
[TimeControl "40/5400+30:1800+30"]

1. d4 {[%emt 0:00:00]} Nf6 {[%emt 0:05:42]} 2. c4 {[%emt 0:00:00]} e5 {[%emt 0:00:23]} 3. dxe5 {[%emt 0:00:07]} Ng4 {[%emt 0:00:04]} 4. Bf4 {[%emt 0:00:33]} Nc6 {[%emt 0:00:08]} 5. Nf3 {[%emt 0:00:04]} Bb4+ {[%emt 0:00:05]} 6. Nc3 {[%emt 0:00:08]} Bxc3+ {[%emt 0:00:24]} 7. bxc3 {[%emt 0:00:06]} Qe7 {[%emt 0:00:22]} 8. Qd5 {[%emt 0:00:31]} f6 {[%emt 0:00:10]} 9. exf6 {[%emt 0:00:05]} Nxf6 {[%emt 0:00:06]} 10. Qd3 {[%emt 0:00:04]} d6 {[%emt 0:01:20]} 11. g3 {[%emt 0:00:28]} b6 {[%emt 0:03:58]} 12. Bg2 {[%emt 0:00:18]} Bb7 {[%emt 0:00:06]} 13. O-O {[%emt 0:00:19]} O-O-O {[%emt 0:05:10]} 14. Nd4 {[%emt 0:03:43]} Ne5 15. Bxe5 {[%emt 0:01:06]} dxe5 {[%emt 0:07:06]} 16. Bxb7+ {[%emt 0:04:47]} Kxb7 {[%emt 0:00:20]} 17. Qf3+ {[%emt 0:00:05]} e4 {[%emt 0:01:08]} 18. Qf5 {[%emt 0:00:07]} c5 {[%emt 0:03:56]} 19. Ne6 {[%emt 0:06:00]} Rd6 {[%emt 0:03:06]} 20. Nf4 {[%emt 0:00:18]} Rhd8 {[%emt 0:06:57]} 21. Rab1 {[%emt 0:04:54]} Ka6 {[%emt 0:13:06]} 22. Ng2 {[%emt 0:18:58]} Rd2 {[%emt 0:06:56]} 23. a4 {[%emt 0:04:34]} Qd7 {[%emt 0:05:34]} 24. Qg5 {[%emt 0:03:09]} h6 {[%emt 0:01:17]} 25. Qg6 {[%emt 0:06:05]} Qg4 {[%emt 0:02:12]} 26. Qxg4 {[%emt 0:03:54]} Nxg4 {[%emt 0:00:02]} 27. a5 {[%emt 0:01:31]} Rxe2 {[%emt 0:02:50]} 28. axb6 {[%emt 0:00:55]} axb6 {[%emt 0:00:15]} 29. Nf4 {[%emt 0:00:05]} Ra2 {[%emt 0:03:16]} 30. Nd5 {[%emt 0:01:10]} Rd6 {[%emt 0:05:48]} 31. Rbe1 {[%emt 0:06:37]} Nf6 {[%emt 0:10:17]} 32. Nxf6 {[%emt 0:06:18]} Rxf6 {[%emt 0:01:18]} 33. Rxe4 {[%emt 0:00:04]} Rf3 {[%emt 0:02:50]} 34. Re8 {[%emt 0:00:24]} Rf7 {[%emt 0:02:47]} 35. f4 {[%emt 0:02:54]} Ra4 {[%emt 0:01:04]} 36. Re4 {[%emt 0:12:45]} Rd7 {[%emt 0:01:51]} 37. f5 {[%emt 0:02:35]} h5 {[%emt 0:02:56]} 38. Kg2 {[%emt 0:01:30]} Ra3 {[%emt 0:01:08]} 39. Rf3 {[%emt 0:02:09]} Rd2+ {[%emt 0:01:30]} 40. Kh3 {[%emt 0:00:11]} Raa2 {[%emt 0:00:22]} 41. Kh4 {[%emt 0:30:05]} Rxh2+ {[%emt 0:32:05]} 42. Kg5 {[%emt 0:00:05]} Rag2 {[%emt 0:00:00]} 43. Rh4 {[%emt 0:00:00]} Rxh4 {[%emt 0:00:00]} 44. Kxh4 {[%emt 0:00:00]} Rh2+ {[%emt 0:00:00]} 45. Kg5 {[%emt 0:00:00]} Rh3 {[%emt 0:00:00]} 46. Kf4 {[%emt 0:00:00]} b5 {[%emt 0:00:00]} 47. Re3 {[%emt 0:00:00]} h4 {[%emt 0:00:00]} 48. g4 {[%emt 0:00:00]} Rxe3 {[%emt 0:00:00]} 49. cxb5+ {[%emt 0:00:00]} Kxb5 {[%emt 0:00:00]} 50. Kxe3 {[%emt 0:00:00]} h3 {[%emt 0:00:00]} 51. Kf3 {[%emt 0:00:00]} h2 {[%emt 0:00:00]} 52. Kg2 {[%emt 0:00:00]} Kc4 {[%emt 0:00:00]} 53. Kxh2 {[%emt 0:00:00]} Kxc3 {[%emt 0:00:00]} 54. g5 {[%emt 0:00:00]} Kd2 {[%emt 0:00:00]} 55. f6 {[%emt 0:00:00]} gxf6 {[%emt 0:00:00]} 56. g6 {[%emt 0:00:00]} c4 {[%emt 0:00:00]} 57. g7 {[%emt 0:00:00]} c3 {[%emt 0:00:00]} 58. g8=Q {[%emt 0:00:00]} c2 {[%emt 0:00:00]} 59. Qd5+ {[%emt 0:00:00]} Kc1 {[%emt 0:00:00]} 60. Kg2 {[%emt 0:00:00]} f5 {[%emt 0:00:00]} 61. Kf1 {[%emt 0:00:00]} f4 {[%emt 0:00:00]} 62. Ke1 {[%emt 0:01:26]} f3 {[%emt 0:00:00]} 63. Qxf3 {[%emt 0:00:32]} Kb1 {[%emt 0:00:00]} 64. Qb3+ {[%emt 0:00:36]} Ka1 {[%emt 0:00:00]} 65. Qa3+ {[%emt 0:00:06]} Kb1 {[%emt 0:00:00]} 66. Kd2 {[%emt 0:00:02]} 1-0

[Event "8. Arber-Schachopen 2019"]
[Site "Bodenmais"]
[Date "2019.08.04"]
[Round "9.12"]
[White "Van der Meiden, Dirk"]
[Black "Senner, Peter"]
[Result "1/2-1/2"]
[ECO "B06"]
[WhiteElo "1992"]
[BlackElo "2231"]
[Annotator "ChessBase"]
[PlyCount "83"]
[EventDate "2019.07.27"]
[EventCountry "GER"]
[SourceTitle "playchess.com"]
[Source "ChessBase"]
[SourceQuality "1"]
[TimeControl "40/5400+30:1800+30"]

1. e4 {[%emt 0:00:00]} g6 {[%emt 0:00:00]} 2. d4 {[%emt 0:00:00]} Bg7 {[%emt 0:00:00]} 3. Nc3 {[%emt 0:01:27]} d6 {[%emt 0:00:00]} 4. Nf3 {[%emt 0:01:37]} a6 {[%emt 0:00:00]} 5. a4 {[%emt 0:02:12]} b6 {[%emt 0:00:11]} 6. Be3 {[%emt 0:01:24]} e6 {[%emt 0:00:55]} 7. d5 {[%emt 0:01:46]} c5 {[%emt 0:02:25]} 8. dxc6 {[%emt 0:00:46]} Nxc6 {[%emt 0:00:06]} 9. Nd4 {[%emt 0:00:21]} Nge7 {[%emt 0:01:30]} 10. Qd2 {[%emt 0:02:41]} Qc7 {[%emt 0:02:16]} 11. Rd1 {[%emt 0:02:11]} Nb4 {[%emt 0:05:03]} 12. Ncb5 {[%emt 0:03:38]} Nxc2+ {[%emt 0:14:42]} 13. Nxc2 {[%emt 0:02:48]} axb5 {[%emt 0:00:07]} 14. Bxb5+ {[%emt 0:01:06]} Bd7 {[%emt 0:01:25]} 15. Nd4 {[%emt 0:03:18]} d5 {[%emt 0:19:43]} 16. Rc1 {[%emt 0:11:47]} Qd6 {[%emt 0:02:52]} 17. b3 {[%emt 0:09:13]} O-O {[%emt 0:01:27]} 18. Bxd7 {[%emt 0:01:00]} Qxd7 {[%emt 0:00:06]} 19. Nb5 {[%emt 0:00:26]} Rfc8 {[%emt 0:09:25]} 20. O-O {[%emt 0:01:06]} Qd8 {[%emt 0:04:36]} 21. Qb4 {[%emt 0:03:14]} dxe4 {[%emt 0:09:42]} 22. Bg5 {[%emt 0:06:17]} f6 {[%emt 0:01:24]} 23. Qxe4 {[%emt 0:02:37]} Qd5 {[%emt 0:03:31]} 24. Qxd5 {[%emt 0:05:31]} Nxd5 {[%emt 0:00:09]} 25. Rxc8+ {[%emt 0:00:24]} Rxc8 {[%emt 0:00:05]} 26. Rc1 {[%emt 0:00:11]} Rxc1+ {[%emt 0:08:17]} 27. Bxc1 {[%emt 0:00:02]} Bf8 {[%emt 0:00:50]} 28. Kf1 {[%emt 0:01:36]} Kf7 {[%emt 0:00:41]} 29. Ke2 {[%emt 0:00:21]} e5 {[%emt 0:00:28]} 30. f3 {[%emt 0:01:46]} Ke6 {[%emt 0:01:09]} 31. Bd2 {[%emt 0:00:37]} f5 {[%emt 0:01:34]} 32. Kd3 {[%emt 0:00:51]} Bc5 {[%emt 0:00:45]} 33. Kc4 {[%emt 0:02:14]} e4 {[%emt 0:04:31]} 34. fxe4 {[%emt 0:09:01]} fxe4 {[%emt 0:00:01]} 35. Nd4+ {[%emt 0:03:41]} Ke5 {[%emt 0:01:01]} 36. Ne2 {[%emt 0:01:13]} Bf2 {[%emt 0:04:23]} 37. Bc3+ {[%emt 0:04:09]} Nxc3 {[%emt 0:01:43]} 38. Kxc3 {[%emt 0:00:42]} Kd5 {[%emt 0:00:09]} 39. Nf4+ {[%emt 0:01:21]} Ke5 {[%emt 0:00:39]} 40. Ne2 {[%emt 0:00:09]} Kd5 {[%emt 0:00:11]} 41. Nf4+ {[%emt 0:31:13]} Ke5 {[%emt 0:18:59]} 42. Ne2 {[%emt 0:00:00]} 1/2-1/2

[Event "8. Arber-Schachopen 2019"]
[Site "Bodenmais"]
[Date "2019.08.04"]
[Round "9.13"]
[White "Beulertz, Stefan"]
[Black "Hoffmann, Sebastian"]
[Result "1/2-1/2"]
[ECO "B30"]
[WhiteElo "2033"]
[BlackElo "2199"]
[Annotator "NA"]
[PlyCount "162"]
[EventDate "2019.07.27"]
[EventCountry "GER"]
[SourceTitle "playchess.com"]
[Source "ChessBase"]
[SourceQuality "1"]
[TimeControl "40/5400+30:1800+30"]

1. e4 {[%emt 0:00:00]} c5 {[%emt 0:00:00]} 2. Nf3 {[%emt 0:00:00]} Nc6 {[%emt 0:00:00]} 3. c3 {[%emt 0:00:15]} d5 {[%emt 0:00:00]} 4. exd5 {[%emt 0:00:15]} Qxd5 {[%emt 0:00:00]} 5. Na3 {[%emt 0:02:56]} e5 {[%emt 0:00:01]} 6. Bc4 {[%emt 0:01:08]} Qe4+ {[%emt 0:00:07]} 7. Be2 {[%emt 0:01:47]} Qf5 {[%emt 0:00:04]} 8. d3 {[%emt 0:03:21]} Be7 {[%emt 0:01:29]} 9. Nc4 {[%emt 0:04:27]} Nf6 {[%emt 0:03:10]} 10. Qa4 {[%emt 0:02:29]} Bd7 {[%emt 0:05:55]} 11. Nb6 {[%emt 0:06:42]} Rd8 {[%emt 0:00:09]} 12. Nxd7 {[%emt 0:00:05]} Rxd7 {[%emt 0:02:14]} 13. h3 {[%emt 0:03:52]} O-O {[%emt 0:10:05]} 14. O-O {[%emt 0:03:14]} h6 {[%emt 0:06:31]} 15. Nh2 {[%emt 0:07:25]} Qe6 {[%emt 0:08:05]} 16. Re1 {[%emt 0:05:21]} Qd6 {[%emt 0:02:51]} 17. f4 {[%emt 0:12:20]} Nd5 {[%emt 0:03:12]} 18. fxe5 {[%emt 0:04:44]} Nxe5 {[%emt 0:00:48]} 19. Nf3 {[%emt 0:03:08]} Bf6 {[%emt 0:11:09]} 20. Nxe5 {[%emt 0:09:10]} Bxe5 {[%emt 0:00:19]} 21. Rf1 {[%emt 0:06:01]} Re7 {[%emt 0:04:32]} 22. Bf3 {[%emt 0:02:08]} Nb6 {[%emt 0:05:23]} 23. Qc2 {[%emt 0:00:18]} Qg6 {[%emt 0:00:38]} 24. Qf2 {[%emt 0:02:38]} Qd6 {[%emt 0:08:58]} 25. Be4 {[%emt 0:01:32]} Nd5 {[%emt 0:03:15]} 26. Qf3 {[%emt 0:01:29]} Rd8 {[%emt 0:00:09]} 27. Be3 {[%emt 0:08:28]} Nf6 {[%emt 0:04:24]} 28. Rad1 {[%emt 0:01:47]} b6 {[%emt 0:01:56]} 29. Kh1 {[%emt 0:00:16]} Qe6 {[%emt 0:00:29]} 30. Bf5 {[%emt 0:01:00]} Qxa2 {[%emt 0:00:54]} 31. d4 {[%emt 0:01:38]} cxd4 {[%emt 0:00:42]} 32. cxd4 {[%emt 0:00:04]} Bb8 {[%emt 0:01:55]} 33. Bxh6 {[%emt 0:03:14]} gxh6 {[%emt 0:02:43]} 34. Bb1 {[%emt 0:00:13]} Qe6 {[%emt 0:00:42]} 35. Qxf6 {[%emt 0:00:07]} Qxf6 {[%emt 0:00:27]} 36. Rxf6 {[%emt 0:00:04]} Rxd4 {[%emt 0:00:24]} 37. Rc1 {[%emt 0:00:41]} Red7 {[%emt 0:04:12]} 38. Ba2 {[%emt 0:01:03]} Be5 {[%emt 0:05:28]} 39. Rff1 {[%emt 0:02:47]} Rd2 {[%emt 0:00:37]} 40. Rce1 {[%emt 0:01:18]} Bxb2 {[%emt 0:02:28]} 41. Bb3 {[%emt 0:00:13]} Kg7 {[%emt 0:03:21]} 42. Re3 {[%emt 0:01:48]} Kf8 {[%emt 0:04:46]} 43. Re6 {[%emt 0:02:19]} f6 {[%emt 0:01:32]} 44. Rfe1 {[%emt 0:00:53]} Be5 {[%emt 0:01:10]} 45. Rf1 {[%emt 0:00:34]} Re7 {[%emt 0:04:07]} 46. Rc6 {[%emt 0:00:29]} Re8 {[%emt 0:04:54]} 47. Be6 {[%emt 0:06:02]} Rd6 {[%emt 0:05:14]} 48. Rxd6 {[%emt 0:07:24]} Bxd6 {[%emt 0:00:02]} 49. Rxf6+ Kg7 {[%emt 0:00:04]} 50. Rf7+ {[%emt 0:00:58]} Kg6 {[%emt 0:00:05]} 51. Bc4 {[%emt 0:00:04]} Rc8 {[%emt 0:02:51]} 52. Rd7 {[%emt 0:00:25]} Rxc4 {[%emt 0:01:45]} 53. Rxd6+ {[%emt 0:00:04]} Kg5 {[%emt 0:00:21]} 54. Kh2 {[%emt 0:01:56]} Rb4 {[%emt 0:00:29]} 55. Rd5+ {[%emt 0:00:33]} Kg6 {[%emt 0:04:33]} 56. Rd6+ {[%emt 0:00:09]} Kf5 {[%emt 0:00:16]} 57. Rxh6 {[%emt 0:00:22]} a5 {[%emt 0:00:00]} 58. g4+ Kf4 59. Rf6+ {[%emt 0:02:17]} Kg5 {[%emt 0:00:02]} 60. Rf5+ {[%emt 0:00:53]} Kg6 {[%emt 0:00:00]} 61. Kg3 {[%emt 0:05:55]} a4 {[%emt 0:00:07]} 62. Rf8 {[%emt 0:01:01]} Rb5 {[%emt 0:02:27]} 63. h4 {[%emt 0:01:10]} a3 {[%emt 0:00:41]} 64. h5+ {[%emt 0:01:04]} Kg7 {[%emt 0:00:35]} 65. Rf1 {[%emt 0:04:04]} a2 {[%emt 0:00:18]} 66. Ra1 {[%emt 0:00:14]} Ra5 {[%emt 0:00:11]} 67. Kf2 {[%emt 0:00:08]} b5 {[%emt 0:04:22]} 68. Ke2 {[%emt 0:00:03]} b4 {[%emt 0:00:23]} 69. Kd2 {[%emt 0:00:10]} b3 {[%emt 0:00:43]} 70. Kc3 {[%emt 0:00:17]} Rb5 {[%emt 0:00:10]} 71. Kb2 {[%emt 0:00:16]} Kh6 {[%emt 0:00:25]} 72. Rh1 {[%emt 0:01:23]} Rb7 {[%emt 0:01:36]} 73. Ka3 {[%emt 0:02:23]} Rb6 {[%emt 0:01:21]} 74. Kb2 {[%emt 0:00:48]} Kg5 {[%emt 0:00:02]} 75. Rg1 {[%emt 0:01:04]} Rb4 {[%emt 0:00:18]} 76. Rg3 {[%emt 0:00:37]} Ra4 {[%emt 0:01:36]} 77. Rg1 {[%emt 0:00:10]} Rb4 {[%emt 0:00:22]} 78. Rg3 {[%emt 0:00:38]} Kf4 {[%emt 0:00:48]} 79. Rg1 {[%emt 0:00:07]} Kg5 {[%emt 0:00:34]} 80. Rg3 {[%emt 0:00:03]} Kf4 {[%emt 0:00:30]} 81. Rg1 {[%emt 0:00:10]} Kg5 {[%emt 0:00:30]} 1/2-1/2

[Event "8. Arber-Schachopen 2019"]
[Site "Bodenmais"]
[Date "2019.08.04"]
[Round "9.14"]
[White "Glaser, Max"]
[Black "Beck, Gerald"]
[Result "1/2-1/2"]
[ECO "B28"]
[WhiteElo "1949"]
[BlackElo "2176"]
[Annotator "NA"]
[PlyCount "38"]
[EventDate "2019.07.27"]
[EventCountry "GER"]
[SourceTitle "playchess.com"]
[Source "ChessBase"]
[SourceQuality "1"]
[TimeControl "40/5400+30:1800+30"]

1. e4 {[%emt 0:00:00]} c5 {[%emt 0:00:00]} 2. Nf3 {[%emt 0:00:00]} a6 {[%emt 0:00:00]} 3. Nc3 {[%emt 0:00:04]} b5 {[%emt 0:02:54]} 4. d3 {[%emt 0:01:05]} Nc6 {[%emt 0:03:36]} 5. Bf4 {[%emt 0:01:02]} d6 {[%emt 0:16:47]} 6. h3 {[%emt 0:02:52]} e5 {[%emt 0:01:24]} 7. Be3 {[%emt 0:01:44]} Nge7 {[%emt 0:01:17]} 8. g4 {[%emt 0:08:54]} Nd4 {[%emt 0:16:03]} 9. Bg2 {[%emt 0:02:29]} Bb7 {[%emt 0:02:19]} 10. Bxd4 {[%emt 0:07:22]} cxd4 {[%emt 0:02:13]} 11. Ne2 {[%emt 0:00:07]} h5 {[%emt 0:02:59]} 12. g5 {[%emt 0:02:03]} Ng6 {[%emt 0:00:47]} 13. O-O {[%emt 0:11:05]} h4 {[%emt 0:08:45]} 14. a4 {[%emt 0:00:36]} Be7 {[%emt 0:06:11]} 15. axb5 {[%emt 0:03:56]} axb5 {[%emt 0:00:45]} 16. Qd2 {[%emt 0:00:46]} O-O {[%emt 0:05:57]} 17. c3 {[%emt 0:10:17]} dxc3 {[%emt 0:00:43]} 18. bxc3 {[%emt 0:01:04]} d5 {[%emt 0:01:29]} 19. Qe3 {[%emt 0:07:47]} dxe4 {[%emt 0:11:02]} 1/2-1/2

[Event "8. Arber-Schachopen 2019"]
[Site "Bodenmais"]
[Date "2019.08.04"]
[Round "9.15"]
[White "Peglau, Charis"]
[Black "Schelle, Artur"]
[Result "0-1"]
[ECO "A10"]
[WhiteElo "1540"]
[BlackElo "2176"]
[Annotator "NA"]
[PlyCount "54"]
[EventDate "2019.07.27"]
[EventCountry "GER"]
[SourceTitle "playchess.com"]
[Source "ChessBase"]
[SourceQuality "1"]
[TimeControl "40/5400+30:1800+30"]

1. c4 {[%emt 0:00:00]} f5 {[%emt 0:00:00]} 2. Nc3 {[%emt 0:00:00]} Nf6 {[%emt 0:00:00]} 3. d4 {[%emt 0:00:07]} d6 {[%emt 0:00:02]} 4. Bf4 {[%emt 0:00:36]} g6 {[%emt 0:01:26]} 5. e3 {[%emt 0:01:26]} Bg7 {[%emt 0:00:44]} 6. Nf3 {[%emt 0:01:02]} O-O {[%emt 0:00:35]} 7. Be2 {[%emt 0:00:29]} Nc6 {[%emt 0:07:30]} 8. O-O {[%emt 0:02:57]} Ne4 {[%emt 0:04:04]} 9. Nxe4 {[%emt 0:03:07]} fxe4 {[%emt 0:00:06]} 10. Nd2 {[%emt 0:00:16]} Nxd4 {[%emt 0:02:43]} 11. exd4 {[%emt 0:03:36]} Rxf4 {[%emt 0:00:14]} 12. g3 {[%emt 0:03:46]} Rf8 {[%emt 0:03:51]} 13. Nxe4 {[%emt 0:00:09]} Bf5 {[%emt 0:14:18]} 14. Nc3 {[%emt 0:01:51]} c6 {[%emt 0:02:06]} 15. Qd2 {[%emt 0:10:00]} Qa5 {[%emt 0:06:50]} 16. Rad1 {[%emt 0:07:45]} Rae8 {[%emt 0:03:28]} 17. Rfe1 {[%emt 0:07:54]} Bc8 {[%emt 0:07:57]} 18. Bf1 {[%emt 0:01:29]} Qh5 {[%emt 0:00:52]} 19. Bg2 {[%emt 0:02:05]} Bg4 {[%emt 0:01:02]} 20. Ne2 {[%emt 0:09:13]} Bh6 {[%emt 0:02:54]} 21. Qd3 {[%emt 0:03:47]} e5 {[%emt 0:01:05]} 22. d5 {[%emt 0:09:17]} c5 {[%emt 0:01:03]} 23. Ra1 {[%emt 0:05:34]} Bf3 {[%emt 0:01:08]} 24. Nc3 {[%emt 0:04:18]} Bxg2 {[%emt 0:02:47]} 25. Kxg2 {[%emt 0:00:44]} Rxf2+ {[%emt 0:00:41]} 26. Kxf2 {[%emt 0:01:43]} Qxh2+ {[%emt 0:01:56]} 27. Kf3 {[%emt 0:00:22]} Rf8+ {[%emt 0:00:01]} 0-1